bitfinex/quotes_ETHUSD_20241018
["timestamp","ask_amount","ask_price","bid_price","bid_amount"]
[1729237697229,3.79469,2635.3,2634.6,0.8324]
[1729237697435,3.79478,2635.2,2634.6,4.62795]
[1729237698079,3.79478,2635.2,2634.7,0.07590173]
[1729237698237,3.79478,2635.2,2634.7,3.87138173]
[1729237698436,3.79478,2635.2,2634.6,4.62803]
[1729237698857,3.79478,2635.2,2634.7,0.07590174]
[1729237699460,3.79478,2635.2,2634.6,4.62803]
[1729237699673,7.58964,2635.2,2634.6,4.62803]
[1729237699969,3.79456,2635.4,2634.6,0.8324]
[1729237700201,3.79456,2635.4,2634.7,7.50416247]
[1729237700376,3.79456,2635.4,2634.7,7.58006048]
[1729237700579,3.79428,2635.6,2634.9,7.50386247]
[1729237700741,3.79428,2635.6,2635.0,3.79497]
[1729237701879,3.79428,2635.6,2635.1,4.60151]
[1729237702174,0.8053,2635.7,2635.1,4.60151]
[1729237702551,3.79429,2635.6,2635.1,0.8066]
[1729237702936,3.79439,2635.5,2635.1,0.8066]
[1729237703776,7.58884,2635.5,2635.1,0.8066]
[1729237704186,3.79439,2635.5,2635.1,0.8066]
[1729237704684,4.59943,2635.7,2635.1,0.8066]
[1729237704685,3.79422,2635.6,2635.1,0.8066]
[1729237705412,4.58563,2635.9,2635.1,0.8066]
[1729237705698,3.79393,2635.8,2635.1,0.8066]
[1729237706706,3.79393,2635.8,2635.3,3.7946]
[1729237707484,3.79393,2635.8,2635.1,4.60139]
[1729237707853,3.79393,2635.8,2635.2,3.79473]
[1729237708294,3.79383,2635.9,2635.3,3.79449]
[1729237708495,3.79363,2636.0,2635.5,0.8131]
[1729237708649,4.988346,2636.1,2635.5,4.60737]
[1729237708854,3.79356,2636.1,2635.5,4.60737]
[1729237709493,7.58712,2636.1,2635.5,4.60737]
[1729237710562,3.79363,2636.0,2635.5,4.60737]
[1729237712770,3.79356,2636.1,2635.5,4.60731]
[1729237712996,3.79356,2636.1,2635.6,3.79409]
[1729237715714,3.79323,2636.3,2635.9,0.8301]
[1729237715869,0.7558,2636.6,2635.9,0.8301]
[1729237716070,3.79358,2636.1,2635.9,0.8301]
[1729237716414,3.79371,2636.0,2635.6,0.8285]
[1729237716702,3.79392,2635.8,2635.6,0.8285]
[1729237717001,3.79378,2635.9,2635.6,0.8285]
[1729237717207,3.79371,2636.0,2635.6,0.8285]
[1729237717416,3.79386,2635.9,2635.6,0.8285]
[1729237717769,3.7937,2636.0,2635.6,0.8285]
[1729237718083,3.79377,2635.9,2635.6,0.8285]
[1729237719184,3.79362,2636.0,2635.6,0.8285]
[1729237719825,0.7669,2636.1,2635.6,0.8285]
[1729237719983,4.6123,2636.3,2635.6,4.62266]
[1729237720178,1.28023,2636.3,2635.6,0.8285]
[1729237720383,3.79357,2636.1,2635.6,0.8285]
[1729237721515,7.58717,2636.1,2635.6,0.8285]
[1729237721676,3.79357,2636.1,2635.6,0.8285]
[1729237722819,3.79356,2636.1,2635.6,0.8285]
[1729237723693,3.79356,2636.1,2635.6,4.62262]
[1729237725111,3.79356,2636.1,2635.7,3.79404]
[1729237726024,3.79338,2636.2,2635.7,3.79404]
[1729237726320,3.79329,2636.3,2635.7,7.58798]
[1729237726529,7.58657,2636.3,2635.7,7.58798]
[1729237726892,3.79328,2636.3,2635.7,7.66379312]
[1729237727226,7.58657,2636.3,2635.7,7.66379312]
[1729237727519,7.58657,2636.3,2635.7,3.86981312]
[1729237727752,3.79328,2636.3,2635.7,7.66378312]
[1729237727932,7.58655,2636.3,2635.8,3.79388]
[1729237728093,7.58655,2636.3,2635.8,0.8095]
[1729237728622,3.79334,2636.2,2635.8,0.8095]
[1729237730427,3.79334,2636.2,2635.8,4.6034]
[1729237730794,3.79321,2636.3,2635.8,4.6034]
[1729237730991,3.79305,2636.4,2635.8,4.6034]
[1729237731390,3.79305,2636.4,2635.8,8.39721]
[1729237732230,7.58618,2636.4,2635.8,8.39715]
[1729237732526,7.58621,2636.4,2635.8,8.39715]
[1729237732742,3.79322,2636.3,2635.8,4.60331]
[1729237735223,3.79305,2636.4,2635.8,4.60331]
[1729237735425,3.79342,2636.2,2635.8,0.8095]
[1729237735925,5.45276305,2636.4,2635.8,0.8095]
[1729237736125,3.79319,2636.3,2635.8,6.26309305]
[1729237739957,1.65971305,2636.4,2635.8,2.46921305]
[1729237740167,3.79336,2636.2,2635.8,0.8095]
[1729237740318,5.69665436,2636.4,2635.8,0.8095]
[1729237740519,3.79319,2636.3,2635.8,4.60336]
[1729237740724,3.79319,2636.3,2635.8,6.26307305]
[1729237741265,3.79314,2636.4,2635.9,1.65971305]
[1729237741473,3.79314,2636.4,2635.8,6.26307305]
[1729237742468,3.79321,2636.3,2635.8,6.26307305]
[1729237743071,3.79323,2636.3,2635.9,1.65971305]
[1729237743274,3.79323,2636.3,2635.8,2.46921305]
[1729237744570,3.79323,2636.3,2635.8,6.26311305]
[1729237747676,3.79323,2636.3,2635.8,4.6034]
[1729237747892,14.79314,2636.4,2635.8,7.53024994]
[1729237748040,3.79319,2636.3,2635.8,6.26311305]
[1729237748441,3.79319,2636.3,2635.9,0.28334898]
[1729237748649,3.79319,2636.3,2635.8,6.26311305]
[1729237749278,3.79319,2636.3,2635.9,0.28338746]
[1729237749450,3.79319,2636.3,2635.9,1.26788287]
[1729237750477,3.79319,2636.3,2635.8,7.05452171]
[1729237750686,3.79319,2636.3,2635.9,1.26843546]
[1729237750846,3.79319,2636.3,2635.8,5.39480866]
[1729237751177,3.79319,2636.3,2635.9,1.26845893]
[1729237751379,3.79319,2636.3,2635.9,0.28357905]
[1729237751556,3.79319,2636.3,2636.0,0.28365561]
[1729237751883,3.79319,2636.3,2635.9,0.98513909]
[1729237752053,14.79314,2636.4,2635.9,3.79376]
[1729237752384,11.0,2636.4,2636.2,0.8183]
[1729237752888,14.79316,2636.4,2636.2,0.8183]
[1729237753384,14.79316,2636.4,2636.0,0.8183]
[1729237753585,14.79316,2636.4,2636.0,4.61192]
[1729237755049,14.79316,2636.4,2636.0,0.8183]
[1729237755248,14.79316,2636.4,2636.1,0.98545375]
[1729237755479,14.79316,2636.4,2636.0,4.61191]
[1729237755670,14.79316,2636.4,2636.1,0.98545046]
[1729237755873,14.79316,2636.4,2636.0,4.61191]
[1729237756066,11.0,2636.4,2636.0,6.27162305]
[1729237756383,11.0,2636.4,2636.1,0.98545927]
[1729237756582,11.0,2636.4,2636.0,7.06294171]
[1729237756785,11.0,2636.4,2636.1,0.98543852]
[1729237756949,11.0,2636.4,2636.0,7.51696062]
[1729237757151,11.0,2636.4,2636.1,0.98544195]
[1729237757376,11.0,2636.4,2636.1,1.65971305]
[1729237757695,11.0,2636.4,2636.2,0.98540984]
[1729237757990,11.0,2636.4,2636.1,5.45317305]
[1729237758157,11.0,2636.4,2636.3,2.42281305]
[1729237758486,11.0,2636.4,2636.3,8.44634337]
[1729237758793,11.0,2636.4,2636.3,8.8420477]
[1729237759152,11.0,2636.4,2636.3,7.65488225]
[1729237759544,11.0,2636.4,2636.3,8.84199524]
[1729237760052,11.0,2636.4,2636.3,1.74823949]
[1729237760244,11.0,2636.4,2636.3,4.20181318]
[1729237760659,11.0,2636.4,2636.3,2.54210013]
[1729237760857,11.0,2636.4,2636.3,2.54150334]
[1729237761150,11.0,2636.4,2636.3,7.99440639]
[1729237761353,11.0,2636.4,2636.3,2.54150334]
[1729237761559,11.0,2636.4,2636.3,1.7476427]
[1729237763284,11.0,2636.4,2636.3,0.7631]
[1729237763591,11.0,2636.4,2636.3,1.74755348]
[1729237765691,11.0,2636.4,2636.3,1.74756206]
[1729237765999,11.0,2636.4,2636.3,0.7631]
[1729237767591,11.0,2636.4,2636.2,0.98439689]
[1729237767754,11.0,2636.4,2636.1,5.41042064]
[1729237767953,11.0,2636.4,2636.2,0.98445725]
[1729237768188,11.0,2636.4,2636.1,5.41042064]
[1729237768407,11.0,2636.4,2636.2,0.98445147]
[1729237768558,11.0,2636.4,2636.1,9.20381064]
[1729237768884,11.0,2636.4,2636.2,0.98448698]
[1729237769092,11.0,2636.4,2636.1,7.52363802]
[1729237769287,11.0,2636.4,2636.2,0.98441219]
[1729237769456,11.0,2636.4,2636.1,5.41035064]
[1729237769785,11.0,2636.4,2636.2,0.98450812]
[1729237769991,11.0,2636.4,2636.1,5.41035064]
[1729237770168,11.0,2636.4,2636.2,0.98456146]
[1729237770490,11.0,2636.4,2636.3,0.98449664]
[1729237771090,11.0,2636.4,2636.2,0.98449664]
[1729237771253,11.0,2636.4,2636.1,5.41035064]
[1729237771454,11.0,2636.4,2636.2,0.98456154]
[1729237771656,11.0,2636.4,2636.1,9.65734398]
[1729237771858,11.0,2636.4,2636.2,0.98453102]
[1729237772072,11.0,2636.4,2636.3,0.98453102]
[1729237772472,11.0,2636.4,2636.2,5.45303305]
[1729237772473,11.0,2636.4,2636.1,3.27667369]
[1729237772669,11.0,2636.4,2636.2,0.98454657]
[1729237772880,11.0,2636.4,2636.1,1.61696064]
[1729237773090,11.0,2636.4,2636.1,0.79386064]
[1729237773298,3.7935,2636.1,2635.9,0.98486577]
[1729237773505,3.79334,2636.2,2635.8,5.59126176]
[1729237773679,3.79334,2636.2,2635.8,4.6062]
[1729237774000,7.58679,2636.2,2635.8,0.8123]
[1729237774200,3.79351,2636.1,2635.8,0.8123]
[1729237774375,3.79334,2636.2,2635.8,0.8123]
[1729237774570,5.45305305,2636.2,2635.7,4.58788064]
[1729237774773,5.45305305,2636.2,2635.8,0.98502315]
[1729237774988,5.45305305,2636.2,2635.7,4.58788064]
[1729237774989,5.45305305,2636.2,2635.7,0.79386064]
[1729237775162,9.24651305,2636.2,2635.6,10.86047369]
[1729237775494,5.45305305,2636.2,2635.7,0.98506228]
[1729237775695,3.79334,2636.2,2635.7,3.79405]
[1729237775872,7.58681,2636.2,2635.7,1.65971305]
[1729237776078,3.79334,2636.2,2635.6,10.86048369]
[1729237776275,3.79349,2636.1,2635.7,0.98498739]
[1729237776472,7.58677,2636.2,2635.6,7.06636369]
[1729237776699,3.79334,2636.2,2635.7,6.43874866]
[1729237776994,3.79334,2636.2,2635.7,5.45376305]
[1729237777376,3.79334,2636.2,2635.7,1.65971305]
[1729237777766,3.79334,2636.2,2635.7,5.45373305]
[1729237778405,7.5868,2636.2,2635.7,5.45373305]
[1729237778903,3.79334,2636.2,2635.7,5.45373305]
[1729237779090,3.79334,2636.2,2635.7,3.79402]
[1729237779473,7.5868,2636.2,2635.7,3.79402]
[1729237779681,9.24651305,2636.2,2635.7,3.79402]
[1729237780202,7.5868,2636.2,2635.7,3.79402]
[1729237780777,3.79334,2636.2,2635.7,3.79402]
[1729237781301,3.79349,2636.1,2635.7,3.79402]
[1729237782099,1.65971305,2636.0,2635.7,0.98475236]
[1729237782304,1.65971305,2636.0,2635.3,8.37733733]
[1729237782305,3.79434,2635.5,2635.3,0.79386064]
[1729237782515,3.7945,2635.4,2635.3,0.98525896]
[1729237782678,3.7942,2635.6,2635.1,0.79386064]
[1729237782679,1.65971305,2635.7,2635.2,0.98525896]
[1729237782913,1.65971305,2635.7,2635.2,0.98532122]
[1729237782914,5.45377305,2635.7,2635.2,0.98532122]
[1729237783114,3.79422,2635.6,2635.2,0.98532122]
[1729237783505,5.45393305,2635.6,2635.0,3.21977369]
[1729237783730,5.45393305,2635.6,2635.1,4.77993863]
[1729237783907,7.58855,2635.6,2635.1,6.43965168]
[1729237784120,3.79422,2635.6,2635.1,5.45463305]
[1729237784926,5.45393305,2635.6,2635.1,3.79492]
[1729237785125,3.79434,2635.5,2635.0,7.20567086]
[1729237785406,3.79434,2635.5,2635.1,0.98476781]
[1729237785805,3.79434,2635.5,2635.0,3.41068086]
[1729237786041,3.79434,2635.5,2635.0,7.20573086]
[1729237786243,3.79434,2635.5,2635.0,6.22096305]
[1729237786750,3.79466,2635.3,2634.8,6.22957369]
[1729237786906,3.79466,2635.3,2634.9,6.43925148]
[1729237787244,3.79466,2635.3,2634.9,5.45491305]
[1729237787598,0.8292,2635.4,2634.9,5.45491305]
[1729237787804,0.8292,2635.4,2634.9,9.25004305]
[1729237788004,0.8292,2635.4,2634.9,7.59033]
[1729237788226,0.8292,2635.4,2634.9,9.25004305]
[1729237788745,0.8292,2635.4,2634.9,5.45484305]
[1729237788952,4.6237,2635.4,2634.9,5.45484305]
[1729237789741,4.6237,2635.4,2634.9,3.79513]
[1729237789902,6.28341305,2635.4,2634.9,3.79513]
[1729237790809,1.65971305,2635.0,2634.5,4.67246711]
[1729237791017,0.7847,2634.9,2634.5,4.67246711]
[1729237791614,0.7847,2634.9,2634.5,6.33218016]
[1729237791908,3.79547,2634.8,2634.3,2.42621305]
[1729237792158,3.79543,2634.8,2634.3,2.42621305]
[1729237792452,3.7955,2634.7,2634.3,2.42621305]
[1729237792823,3.796,2634.4,2634.1,0.769]
[1729237793037,1.65971305,2634.7,2634.1,0.769]
[1729237793038,0.7815,2634.5,2634.1,0.769]
[1729237793243,4.57737,2634.5,2634.1,0.769]
[1729237793446,4.57737,2634.5,2634.1,2.42871305]
[1729237794170,4.57737,2634.5,2634.1,0.769]
[1729237794469,4.57737,2634.5,2634.1,2.42871305]
[1729237794769,0.7815,2634.5,2634.1,2.42871305]
[1729237795743,0.7815,2634.5,2634.2,1.65971305]
[1729237795979,3.79571,2634.6,2634.3,1.65971305]
[1729237796126,3.79571,2634.6,2634.2,1.65971305]
[1729237796330,4.55312,2634.7,2634.3,1.65971305]
[1729237796532,4.55312,2634.7,2634.2,1.65971305]
[1729237797166,4.55312,2634.7,2634.3,1.65971305]
[1729237797374,4.55312,2634.7,2634.2,3.7962]
[1729237797375,4.55312,2634.7,2634.2,5.45591305]
[1729237798679,4.55312,2634.7,2634.3,1.65971305]
[1729237798857,3.79564,2634.6,2634.3,1.65971305]
[1729237799162,0.7576,2634.7,2634.3,1.65971305]
[1729237799532,4.55312,2634.7,2634.3,1.65971305]
[1729237800244,0.7576,2634.7,2634.2,1.65971305]
[1729237800452,3.79564,2634.6,2634.2,1.65971305]
[1729237800631,3.79564,2634.6,2634.1,2.42871305]
[1729237800832,3.7958,2634.5,2634.1,2.42871305]
[1729237801155,3.79564,2634.6,2634.2,1.65971305]
[1729237802338,0.7869,2635.2,2634.6,7.59119]
[1729237802536,0.7869,2635.2,2634.6,0.07590311]
[1729237802738,0.7869,2635.2,2634.5,6.27065305]
[1729237802739,3.79506,2635.0,2634.5,6.27065305]
[1729237802950,3.79506,2635.0,2634.6,1.65971305]
[1729237803132,7.59002,2635.1,2634.6,1.65971305]
[1729237803357,3.79499,2635.1,2634.6,1.65971305]
[1729237803562,3.79508,2635.0,2634.6,1.65971305]
[1729237805487,3.79497,2635.1,2634.6,5.45535305]
[1729237805876,7.58999,2635.1,2634.6,1.65971305]
[1729237806065,3.79497,2635.1,2634.6,1.65971305]
[1729237806770,3.79497,2635.1,2634.6,5.45525305]
[1729237807179,3.79506,2635.0,2634.6,1.65971305]
[1729237807486,4.58179,2635.2,2634.6,5.45524305]
[1729237807853,3.79498,2635.1,2634.6,5.45524305]
[1729237808263,4.58179,2635.2,2634.7,1.65971305]
[1729237808467,4.58177,2635.2,2634.7,1.65971305]
[1729237808935,8.37666,2635.2,2634.7,1.65971305]
[1729237809147,4.58177,2635.2,2634.7,5.45519305]
[1729237809352,4.58176,2635.2,2634.7,5.45519305]
[1729237809655,4.58176,2635.2,2634.7,5.45510305]
[1729237809883,0.7869,2635.2,2634.7,5.45510305]
[1729237810058,4.58168,2635.2,2634.7,5.45510305]
[1729237810795,4.58168,2635.2,2634.8,1.65971305]
[1729237811353,4.58168,2635.2,2634.7,1.65971305]
[1729237811561,3.79503,2635.1,2634.7,1.65971305]
[1729237811760,7.59006,2635.1,2634.7,1.65971305]
[1729237812061,7.59006,2635.1,2634.6,1.65971305]
[1729237812258,3.79503,2635.1,2634.7,1.65971305]
[1729237812487,3.79509,2635.0,2634.6,5.45534305]
[1729237812654,3.79503,2635.1,2634.6,5.45534305]
[1729237813064,3.79501,2635.1,2634.6,5.45534305]
[1729237813358,3.79501,2635.1,2634.7,1.65971305]
[1729237813581,7.59006,2635.1,2634.7,1.65971305]
[1729237813790,3.79501,2635.1,2634.7,1.65971305]
[1729237814873,3.79526,2634.9,2634.6,1.65971305]
[1729237816357,3.79501,2635.1,2634.7,1.65971305]
[1729237816558,3.79523,2634.9,2634.6,1.65971305]
[1729237817406,3.79523,2634.9,2634.5,1.65971305]
[1729237817407,4.57433,2634.8,2634.5,1.65971305]
[1729237817759,0.7789,2634.8,2634.5,1.65971305]
[1729237817985,0.7789,2634.8,2634.6,1.65971305]
[1729237818597,4.57425,2634.8,2634.6,1.65971305]
[1729237818763,3.79521,2634.9,2634.6,1.65971305]
[1729237818967,3.79521,2634.9,2634.7,1.65971305]
[1729237819195,3.79521,2634.9,2634.6,1.65971305]
[1729237819904,4.57857,2635.0,2634.4,3.87175097]
[1729237819905,3.79537,2634.8,2634.4,5.45555305]
[1729237820097,3.79556,2634.7,2634.3,1.65971305]
[1729237820425,3.79556,2634.7,2634.2,3.8169]
[1729237820426,3.79573,2634.6,2634.2,0.8169]
[1729237820596,2.42791305,2634.7,2634.0,2.41991305]
[1729237820597,3.79601,2634.4,2634.0,2.41991305]
[1729237821107,8.36023,2634.4,2634.0,2.41991305]
[1729237821272,8.36023,2634.4,2633.7,0.85083323]
[1729237821273,3.79631,2634.2,2633.7,0.85083323]
[1729237821473,0.7682,2634.4,2633.6,0.7755]
[1729237821474,1.65971305,2634.0,2633.6,0.7755]
[1729237821684,0.833,2634.1,2633.8,1.65971305]
[1729237822013,1.65971305,2634.4,2633.6,0.7755]
[1729237822014,4.62915,2634.3,2633.7,3.79686]
[1729237822307,0.833,2634.3,2633.8,1.65971305]
[1729237822622,3.79624,2634.2,2633.8,1.65971305]
[1729237822766,3.79644,2634.1,2633.8,1.65971305]
[1729237824111,3.79666,2633.9,2633.6,0.7755]
[1729237824317,4.58036,2633.9,2633.6,1.65971305]
[1729237824521,8.37712,2633.9,2633.6,1.65971305]
[1729237824679,4.58036,2633.9,2633.6,1.65971305]
[1729237825315,4.58036,2633.9,2633.5,1.65971305]
[1729237825614,4.58036,2633.9,2633.3,8.40794]
[1729237825615,3.79679,2633.8,2633.3,4.61051]
[1729237825807,4.58036,2633.9,2633.3,0.8131]
[1729237825808,3.79701,2633.7,2633.3,0.8131]
[1729237826002,0.7627,2633.5,2633.1,0.7696]
[1729237826203,7.59372,2633.8,2633.2,3.79765]
[1729237826505,4.59662,2633.7,2633.1,8.36509]
[1729237826707,3.7971,2633.6,2633.1,4.56731]
[1729237826905,3.7971,2633.6,2633.1,5.6270225]
[1729237827110,3.7971,2633.6,2633.4,1.65971305]
[1729237827621,3.7971,2633.6,2633.3,1.65971305]
[1729237827979,3.7971,2633.6,2633.1,0.7696]
[1729237827980,3.79726,2633.5,2633.1,0.7696]
[1729237828124,3.79726,2633.5,2633.0,3.98382853]
[1729237828125,3.79726,2633.5,2633.0,4.77768917]
[1729237828287,3.79726,2633.5,2633.0,7.78174853]
[1729237828624,3.79726,2633.5,2633.0,6.79792]
[1729237828925,3.79726,2633.5,2633.0,3.87387115]
[1729237829226,3.79726,2633.5,2633.0,4.85787523]
[1729237829925,3.7971,2633.6,2633.0,4.85781523]
[1729237830787,3.7971,2633.6,2633.1,3.79778]
[1729237831494,4.59662,2633.7,2633.1,3.79778]
[1729237831708,3.79708,2633.6,2633.1,3.79778]
[1729237831904,3.79708,2633.6,2633.2,0.07670271]
[1729237832417,3.49465177,2633.6,2633.2,0.07670271]
[1729237832832,4.59659,2633.7,2633.2,0.07670271]
[1729237833017,4.59659,2633.7,2633.2,3.87434271]
[1729237834005,0.7996,2633.7,2633.3,3.79745]
[1729237834241,0.7996,2633.7,2633.4,0.07780585]
[1729237834751,4.59655,2633.7,2633.2,3.79757]
[1729237835240,4.59655,2633.7,2633.3,0.07787608]
[1729237835480,4.59655,2633.7,2633.2,3.79757]
[1729237835603,4.59655,2633.7,2633.4,0.07780585]
[1729237835805,4.62225,2633.9,2633.4,3.87505585]
[1729237836305,3.79686,2633.8,2633.4,0.07780585]
[1729237836507,4.62225,2633.9,2633.4,3.87514585]
[1729237837618,8.41899,2633.9,2633.4,3.87514585]
[1729237838139,4.62225,2633.9,2633.4,3.87514585]
[1729237838447,4.62225,2633.9,2633.4,0.07780585]
[1729237838648,8.419,2633.9,2633.4,3.87515585]
[1729237838826,3.79665,2633.9,2633.4,3.87515585]
[1729237840046,3.7968,2633.8,2633.4,3.87515585]
[1729237841261,3.7968,2633.8,2633.4,0.07780585]
[1729237842545,3.7968,2633.8,2633.4,3.87516585]
[1729237845253,3.7968,2633.8,2633.4,0.07780585]
[1729237846639,5.31084,2633.8,2633.4,0.07780585]
[1729237846863,3.79706,2633.7,2633.4,0.07780585]
[1729237847875,3.79706,2633.7,2633.5,1.66267577]
[1729237848082,4.5819,2634.1,2633.6,1.66267577]
[1729237848256,3.79672,2633.9,2633.7,1.66267577]
[1729237848456,3.79672,2633.9,2633.8,0.077577]
[1729237848662,3.79672,2633.9,2633.7,1.66267577]
[1729237848845,3.79672,2633.9,2633.8,0.077577]
[1729237849385,3.79672,2633.9,2633.6,1.66267577]
[1729237849539,3.79672,2633.9,2633.7,0.07764721]
[1729237851492,3.79672,2633.9,2633.7,1.74032298]
[1729237851648,4.58195,2634.1,2633.8,1.66267577]
[1729237851649,3.79653,2634.0,2633.8,1.66267577]
[1729237851852,3.79653,2634.0,2633.9,0.07750679]
[1729237852083,3.79653,2634.0,2633.6,1.66267577]
[1729237852259,3.79653,2634.0,2633.9,0.07753109]
[1729237852457,3.79653,2634.0,2633.7,1.66267577]
[1729237852663,3.79653,2634.0,2633.9,0.07753109]
[1729237853145,3.79653,2634.0,2633.6,1.66267577]
[1729237853586,3.79665,2633.9,2633.7,0.07767152]
[1729237853942,3.79653,2634.0,2633.5,1.66267577]
[1729237853943,3.79681,2633.8,2633.5,1.66267577]
[1729237854350,7.59314,2634.0,2633.5,1.66267577]
[1729237854883,3.79653,2634.0,2633.6,1.66267577]
[1729237855271,3.79665,2633.9,2633.5,1.66267577]
[1729237855484,3.79665,2633.9,2633.6,1.66267577]
[1729237855650,3.79665,2633.9,2633.7,1.66267577]
[1729237855852,3.79665,2633.9,2633.5,1.66267577]
[1729237857253,3.79665,2633.9,2633.6,1.66267577]
[1729237857452,3.79665,2633.9,2633.5,1.66267577]
[1729237857680,3.79665,2633.9,2633.5,5.45987577]
[1729237859984,3.79665,2633.9,2633.5,1.66267577]
[1729237860588,3.79665,2633.9,2633.6,1.7404175]
[1729237860794,3.79665,2633.9,2633.6,0.07774173]
[1729237861756,3.79665,2633.9,2633.6,1.7404175]
[1729237862181,3.79665,2633.9,2633.6,0.07774173]
[1729237862862,4.58196,2634.1,2633.6,0.07774173]
[1729237863076,3.79666,2633.9,2633.5,1.66267577]
[1729237863253,3.79666,2633.9,2633.7,0.07767152]
[1729237863458,3.79666,2633.9,2633.5,2.64786811]
[1729237863684,3.79666,2633.9,2633.6,0.07774173]
[1729237864385,5.45946577,2633.8,2633.6,0.07774173]
[1729237864584,5.19482658,2633.7,2633.6,0.07774173]
[1729237864984,3.79724,2633.5,2633.3,1.66267577]
[1729237865182,3.79717,2633.6,2633.3,1.66267577]
[1729237865391,3.79717,2633.6,2633.3,2.64863057]
[1729237865695,7.59435,2633.6,2633.3,1.66267577]
[1729237866061,4.57151,2633.7,2633.5,1.66267577]
[1729237866264,4.57151,2633.7,2633.4,2.45653641]
[1729237866483,4.57151,2633.7,2633.5,0.98732607]
[1729237866797,4.57151,2633.7,2633.4,2.45653641]
[1729237867098,4.57151,2633.7,2633.5,0.98733191]
[1729237867303,4.57151,2633.7,2633.4,1.24813857]
[1729237867596,4.57151,2633.7,2633.5,0.98768505]
[1729237867757,3.79708,2633.6,2633.4,0.79386064]
[1729237867954,3.79708,2633.6,2633.5,0.98767106]
[1729237868353,3.79708,2633.6,2633.5,1.7815317]
[1729237868757,3.79708,2633.6,2633.5,0.98767106]
[1729237869001,3.79708,2633.6,2633.5,1.7815317]
[1729237869154,3.79708,2633.6,2633.5,0.98767106]
[1729237869354,3.79708,2633.6,2633.5,0.9881012]
[1729237870292,3.79708,2633.6,2633.5,1.78196184]
[1729237870696,3.79708,2633.6,2633.5,0.9881012]
[1729237871490,3.79708,2633.6,2633.5,1.78196184]
[1729237871798,3.79708,2633.6,2633.5,0.9881012]
[1729237872508,3.79708,2633.6,2633.5,1.78196184]
[1729237873110,3.79708,2633.6,2633.5,0.9881012]
[1729237874004,3.79708,2633.6,2633.4,0.79386064]
[1729237874205,3.79708,2633.6,2633.5,0.98809525]
[1729237874363,3.79708,2633.6,2633.5,1.78195589]
[1729237874569,3.79708,2633.6,2633.5,0.98809525]
[1729237875483,3.79708,2633.6,2633.5,1.05599154]
[1729237876624,7.12300777,2633.6,2633.5,0.06789629]
[1729237876773,8.460332,2633.6,2633.5,0.06789629]
[1729237876970,0.8264,2633.1,2632.8,0.79386064]
[1729237877201,3.79809,2632.9,2632.8,0.79386064]
[1729237877369,3.79809,2632.9,2632.8,0.98924606]
[1729237878407,4.6243,2633.1,2632.8,2.65192183]
[1729237878610,3.79799,2633.0,2632.7,2.45653641]
[1729237878777,3.79799,2633.0,2632.8,0.9883044]
[1729237878970,3.79799,2633.0,2632.7,2.45653641]
[1729237879176,3.79799,2633.0,2632.8,0.9883061]
[1729237879375,3.7979,2633.1,2632.8,1.66267577]
[1729237879772,3.79768,2633.2,2632.9,2.65056217]
[1729237879972,0.8215,2633.3,2632.9,2.65056217]
[1729237880201,3.79755,2633.3,2633.0,1.66267577]
[1729237880400,3.79755,2633.3,2632.9,2.65046186]
[1729237880603,3.79741,2633.4,2633.1,1.66267577]
[1729237880778,3.79741,2633.4,2633.0,1.66267577]
[1729237881115,3.79741,2633.4,2633.1,1.66267577]
[1729237881278,0.7958,2633.5,2633.0,2.65027834]
[1729237881279,4.59311,2633.5,2633.0,2.65027834]
[1729237881479,3.79738,2633.4,2633.0,1.66267577]
[1729237881675,4.59303,2633.5,2633.1,1.66267577]
[1729237882213,4.59303,2633.5,2633.2,0.7642]
[1729237882414,3.79737,2633.4,2633.0,3.69846048]
[1729237882709,4.5931,2633.5,2633.0,7.49638048]
[1729237882918,4.5931,2633.5,2633.0,6.22479577]
[1729237883076,3.79738,2633.4,2633.0,2.42687577]
[1729237883272,3.79738,2633.4,2633.0,3.69844142]
[1729237883509,7.59483,2633.4,2633.0,3.69844142]
[1729237883722,3.79738,2633.4,2633.0,3.69844142]
[1729237884018,3.79738,2633.4,2633.0,1.27156565]
[1729237884387,3.79762,2633.3,2633.0,0.28425477]
[1729237884613,3.79762,2633.3,2632.9,2.93424142]
[1729237884983,3.79766,2633.2,2632.9,1.27156565]
[1729237885988,3.79766,2633.2,2632.9,2.93424142]
[1729237886335,3.79743,2633.4,2632.9,2.93424142]
[1729237886488,3.79753,2633.3,2632.9,2.93424142]
[1729237887207,3.79771,2633.2,2632.9,1.27156565]
[1729237887726,3.79753,2633.3,2632.9,1.27156565]
[1729237887727,7.59516,2633.3,2632.9,1.27156565]
[1729237888064,7.59516,2633.3,2632.9,0.98673254]
[1729237888183,3.79753,2633.3,2632.9,1.2708353]
[1729237888686,3.79753,2633.3,2632.9,2.93351107]
[1729237889122,3.79766,2633.2,2632.9,2.93351107]
[1729237889331,3.79767,2633.2,2632.9,1.2708353]
[1729237889495,3.79767,2633.2,2632.8,4.53897171]
[1729237889697,3.79753,2633.3,2632.8,3.26813641]
[1729237889900,3.79781,2633.1,2632.8,3.74511107]
[1729237890106,3.79781,2633.1,2632.8,2.0824353]
[1729237890501,3.79781,2633.1,2632.9,0.05533399]
[1729237892531,7.59491,2633.4,2632.9,1.71800976]
[1729237892731,3.79751,2633.3,2633.1,1.66267577]
[1729237893048,3.79751,2633.3,2633.0,1.66267577]
[1729237893209,3.79751,2633.3,2633.2,0.0532039]
[1729237893410,3.79751,2633.3,2633.1,1.71594992]
[1729237893611,3.79751,2633.3,2633.2,0.0532039]
[1729237893930,3.79751,2633.3,2633.0,1.66267577]
[1729237894138,3.79751,2633.3,2633.2,0.0532039]
[1729237894330,3.79751,2633.3,2633.1,0.05327415]
[1729237894500,3.79751,2633.3,2633.2,0.0532039]
[1729237894698,3.79751,2633.3,2633.0,1.66267577]
[1729237895004,3.79751,2633.3,2633.1,0.05327415]
[1729237895731,3.79751,2633.3,2633.2,0.0532039]
[1729237896100,3.79751,2633.3,2632.9,2.93320908]